Cogmind - Beta 16 @@@ ROGUE MODE // 2025.10.24 @ 18:12:48 Player: alj Result: Destroyed by Y-45 Defender with Heavy Assault Rifle Performance ------------- Evolutions (2) 1000 Regions Visited (5) 1000 Robots Destroyed (23) 115 Value Destroyed (428) 428 Prototype IDs (3) 60 Alien Tech Used (0) 0 Bonus (0) 0 TOTAL SCORE: 2603 Bonus ------- None Cogmind --------- Core Integrity 0/550 Matter 95/300 Energy 100/100 System Corruption 0% Temperature Cool (9) Movement Core (50) Location -8/Materials Parts ------- > --- POWER (2) -------- (None) > --- PROPULSION (4) --- (None) > --- UTILITY (3) ------ (None) > --- WEAPON (2) ------- (None) > --- INVENTORY (5) ---- Wheel Flight Unit Small Storage Unit Microactuators Peak State ------------ > --- POWER ------------ Light Ion Engine > --- PROPULSION ------- Xenon Bombardment Thruster Xenon Bombardment Thruster Xenon Bombardment Thruster Xenon Bombardment Thruster > --- UTILITY ---------- Microactuators Microactuators Microactuators > --- WEAPON ----------- Advanced Assault Cannon Advanced Assault Cannon > --- INVENTORY -------- Wheel Flight Unit Small Storage Unit Large Battery [Rating: 37] Favorites ----------- Power Ion Engine Engine Ion Engine Propulsion Aluminum Leg Treads Light Treads Leg Aluminum Leg Flight Unit Flight Unit Utility Large Battery Device Microactuators Storage Large Battery Weapon Assault Rifle Energy Gun Medium Laser Ballistic Gun Assault Rifle Ballistic Cannon Advanced Assault Cannon Build | -11 -10 -10 -9 -9 -8 ------- Run | Yrd Mat Min Mat Min Mat Slots Evolved 4 | . . . 2 . 2 Power 1 | . . . . . 1 Propulsion 2 | . . . 2 . . Utility 1 | . . . . . 1 Weapon . | . . . . . . Parts Attached 28 | 6 1 1 2 5 13 Power 3 | 1 . . . 2 . Engine 3 | 1 . . . 2 . Core . | . . . . . . Reactor . | . . . . . . Propulsion 13 | 2 . . . 3 8 Treads 2 | . . . . 2 . Leg 2 | 2 . . . . . Wheel . | . . . . . . Hover . | . . . . . . Flight 9 | . . . . 1 8 Utility 6 | 1 1 1 . . 3 Device 4 | . . 1 . . 3 Storage 2 | 1 1 . . . . Processor . | . . . . . . Hackware . | . . . . . . Protection . | . . . . . . Artifact . | . . . . . . Weapon 6 | 2 . . 2 . 2 Energy Gun 3 | 1 . . 2 . . Energy Cannon . | . . . . . . Ballistic Gun 1 | 1 . . . . . Ballistic Cannon 2 | . . . . . 2 Launcher . | . . . . . . Special Weapon . | . . . . . . Impact Weapon . | . . . . . . Slashing Weapon . | . . . . . . Piercing Weapon . | . . . . . . Special Melee Weapon . | . . . . . . Unidentified Prototypes 1 | . . 1 . . . Parts Lost 12 | . . . 5 4 3 Power 3 | . . . 1 1 1 Propulsion 6 | . . . 2 2 2 Utility 1 | . . . . 1 . Weapon 2 | . . . 2 . . Highest Loss Streak 5 | . . . 5 2 2 To Critical Strikes . | . . . . . . Average Backups 3 | 1 4 4 5 2 3 Power . | . 1 1 1 . . Propulsion 2 | 1 3 3 3 1 1 Utility . | . . . 1 1 2 Weapon . | . . . . . . Tool/Special . | . . . . . . Unused Backups 1 | . . . . . 1 Power . | . . . . . . Propulsion 1 | . . . . . 1 Utility . | . . . . . . Weapon . | . . . . . . Tool/Special . | . . . . . . Average Slot Usage (%) 70 | . 87 100 72 26 63 Engine 8 | . 14 14 9 2 3 Treads 1 | . . . . 7 . Leg 14 | . 28 28 20 . . Flight 6 | . . . . 1 24 Device 9 | . . 11 10 6 15 Storage 11 | . 16 16 11 8 6 Energy Gun 7 | . 14 14 10 . . Ballistic Gun 7 | . 14 14 9 . . Ballistic Cannon 3 | . . . . . 13 Peak Build Rating 37 | 6 7 15 16 13 37 Average Rating 12 | 4 6 13 14 7 19 On Entrance 6 | . 6 7 15 10 2 Avg Prop Armor Cover (%) 13 | . . . . . 13 Naked Turns 83 | . . . . 31 52 Heaviest Build 22 | 14 17 17 18 7 22 Greatest Support 40 | 20 20 20 20 40 24 Greatest Overweight (x) 7 | . . . 1 1 7 Average Overweight (x) . | . . . . . . Largest Inventory Capacity 8 | 8 8 8 8 5 5 Average Capacity 5 | 6 8 5 5 5 5 Most Carried 5 | 4 4 5 5 5 4 Average Carried 3 | 1 4 4 4 2 3 Final Capacity 8 | 8 8 5 5 5 5 Final Carried 5 | 4 4 5 5 3 4 Class Distribution -------------------- 77% | Mutant 14% | Scavenger-Mutant 7% | Sprinter Dominant Class ---------------- Mutant | -10/Materials Mutant | -10/Mines Mutant | -9/Materials Mutant | -9/Mines Scavenger-Mutant | -8/Materials Resources | -11 -10 -10 -9 -9 -8 ----------- Run | Yrd Mat Min Mat Min Mat Matter Collected 503 | 162 90 . 126 36 89 Remotely . | . . . . . . Salvage Created 575 | . 71 . 256 136 112 Parts 53 | . 3 . 23 11 16 Haulers Intercepted . | . . . . . . Recyclers Shooed 3 | . 1 . . 2 . Parts Field Recycled . | . . . . . . Retrieved Matter . | . . . . . . Parts Self-Destructed . | . . . . . . Prevented . | . . . . . . Parts Restored . | . . . . . . Kills | -11 -10 -10 -9 -9 -8 ------- Run | Yrd Mat Min Mat Min Mat Combat Hostiles Destroyed 18 | . 1 . 9 2 6 Melee 3 | . . . 1 2 . Guns 9 | . 1 . 8 . . Cannons 6 | . . . . . 6 Classes Destroyed 7 | . 2 . 3 1 1 Worker 1 | . . . 1 . . Builder 1 | . . . . . 1 Recycler 1 | . . . . 1 . Watcher 2 | . 1 . 1 . . Swarmer 12 | . . . 6 2 4 Grunt 5 | . 1 . 2 . 2 Sentry 1 | . . . 1 . . Best Kill Streak 5 | . 1 . 5 2 4 Combat Bots Only 4 | . 1 . 4 2 4 Max Kills in Single Turn 2 | . 1 . 2 1 1 Gunslinging . | . . . . . . Exploded . | . . . . . . Melee 1 | . . . 1 1 . Uniques/NPCs Destroyed . | . . . . . . Combat | -11 -10 -10 -9 -9 -8 -------- Run | Yrd Mat Min Mat Min Mat Hostile Shots Fired 190 | . 2 . 64 22 102 Missed 46 | . 1 . 12 3 30 Hits 144 | . 1 . 52 19 72 Projectile 144 | . 1 . 52 19 72 AOE 9 | . . . . 9 . Critical Strikes 4 | . . . 3 . 1 Damage Taken 2022 | . 12 . 610 519 881 Core 881 | . . . 159 165 557 Absorbed by Shields . | . . . . . . Core Remaining (%) 73 | 100 . 100 . 19 . Volleys Fired 42 | . 4 . 24 . 14 Largest 2 | . 2 . 2 . 2 Hottest 80 | . 70 . 76 . 80 Shots Fired 80 | . 8 . 44 . 28 Gun 52 | . 8 . 44 . . Cannon 28 | . . . . . 28 Launcher . | . . . . . . Special . | . . . . . . Kinetic 52 | . 4 . 20 . 28 Thermal 28 | . 4 . 24 . . Explosive . | . . . . . . Electromagnetic . | . . . . . . Robot Hit Streak 4 | . 2 . 3 . 4 Robot Miss Streak 4 | . 1 . 4 . 3 Penetration Max . | . . . . . . Secondary Targets . | . . . . . . Shots Hit Robots 37 | . 3 . 21 . 13 Core Hits 44 | . 3 . 16 14 11 Critical Kills . | . . . . . . Critical Parts Destroyed . | . . . . . . Critical Strikes 2 | . . . 1 . 1 Burn 1 | . . . 1 . . Blast 1 | . . . . . 1 Melee Attacks . | . . . . . . Impact . | . . . . . . Slashing . | . . . . . . Piercing . | . . . . . . Sneak Attacks . | . . . . . . Combat Hostiles . | . . . . . . Follow-up Attacks . | . . . . . . Damage Inflicted 825 | 11 50 4 326 86 348 Guns 356 | . 50 . 306 . . Cannons 333 | . . . . . 333 Explosions . | . . . . . . Melee . | . . . . . . Ramming 136 | 11 . 4 20 86 15 Kinetic 507 | . 25 . 149 . 333 Thermal 182 | . 25 . 157 . . Explosive . | . . . . . . Electromagnetic . | . . . . . . Impact . | . . . . . . Slashing . | . . . . . . Piercing . | . . . . . . Highest Corruption . | . . . . . . Average Corruption . | . . . . . . Corruption Purged . | . . . . . . Corruption Blocked . | . . . . . . Overload Shots . | . . . . . . Overflow Damage . | . . . . . . Projectiles . | . . . . . . Explosions . | . . . . . . Melee . | . . . . . . Knockbacks 3 | . . . 1 . 2 Impact 1 | . . . 1 . . Kinetic 2 | . . . . . 2 Secondary . | . . . . . . Self-Inflicted Damage 42 | . . . . 35 7 Shots . | . . . . . . Rammed 38 | . . . . 33 5 Targets Rammed 53 | 3 . 2 10 33 5 Kicked 15 | 3 . 2 10 . . Crushed . | . . . . . . Highest Temperature 146 | . 24 . 146 . 144 Average Temperature 50 | . 12 . 48 . 67 Received Heat Transfer 387 | . 6 . 219 . 162 Siege Activations . | . . . . . . Martial Activations . | . . . . . . Shielding Activations . | . . . . . . Robots Disrupted . | . . . . . . Combat Hostiles . | . . . . . . Robots Corrupted . | . . . . . . Combat Hostiles . | . . . . . . Parts Fried . | . . . . . . Impact Corruptions . | . . . . . . Robots Melted . | . . . . . . Combat Hostiles . | . . . . . . Parts Melted . | . . . . . . Heat Transferred 555 | . 74 . 481 . . Parts Sabotaged . | . . . . . . Parts Stolen . | . . . . . . Parts Stripped . | . . . . . . Power Chain Reactions . | . . . . . . Alert | -11 -10 -10 -9 -9 -8 ------- Run | Yrd Mat Min Mat Min Mat Maximum Alert Level . | . . . . . . Low Security (%) 100 | 100 100 100 100 100 100 Level 1 . | . . . . . . Level 2 . | . . . . . . Level 3 . | . . . . . . Level 4 . | . . . . . . Level 5 . | . . . . . . High Security . | . . . . . . Max Security . | . . . . . . Peak Influence 182 | . 30 . 182 55 96 Initial 55 | . . . . 55 11 Average 28 | . 4 . 52 25 54 Influence Increases 679 | . 50 . 293 70 266 Destroy 0b10 Robot/C 360 | . 20 . 180 40 120 Destroy 0b10 Robot/NC 25 | . 5 . 10 5 5 Destroy Leader 74 | . 12 . 42 10 10 Successful Hack 14 | . 13 . 1 . . Disable Machine 15 | . . . . . 15 Destroy Structure 11 | . . . . . 11 Partial Spotted 15 | . . . . . 15 Lose Combat Pursuer 165 | . . . 60 15 90 Influence Decreases 593 | . 50 . 151 182 210 Entered New Map 106 | . . . . 87 19 Time Decay 377 | . 50 . 101 65 161 Lost Part 110 | . . . 50 30 30 Squads Dispatched 4 | . 1 . 1 . 2 Investigation 1 | . . . 1 . . Extermination . | . . . . . . Reinforcement 3 | . 1 . . . 2 Assault . | . . . . . . Garrison . | . . . . . . Intercept . | . . . . . . Searches Triggered . | . . . . . . Construction Impeded . | . . . . . . Haulers Reinforced . | . . . . . . Active Scanning Responses . | . . . . . . Cargo Convoy Interrupts . | . . . . . . Stealth | -11 -10 -10 -9 -9 -8 --------- Run | Yrd Mat Min Mat Min Mat Distress Signals 6 | . . . 2 . 4 Communications Jammed . | . . . . . . Distress Signals . | . . . . . . Times Spotted 45 | . 2 . 13 5 25 Peak Tracking Total 19 | . 1 . 9 3 19 Tactical Retreats 3 | . . . 1 1 1 Traps | -11 -10 -10 -9 -9 -8 ------- Run | Yrd Mat Min Mat Min Mat Traps Triggered . | . . . . . . Indirectly . | . . . . . . Trap Hack Attempts . | . . . . . . Triggered . | . . . . . . Disarmed . | . . . . . . Reprogrammed . | . . . . . . Reused . | . . . . . . Traps Extracted . | . . . . . . Installed . | . . . . . . Triggered . | . . . . . . Machines | -11 -10 -10 -9 -9 -8 ---------- Run | Yrd Mat Min Mat Min Mat Machines Disabled 1 | . . . . . 1 Max in Single Turn 1 | . . . . . 1 Machines Repaired . | . . . . . . Machines Dismantled . | . . . . . . Machines Sabotaged . | . . . . . . Overloaded Fab Kills . | . . . . . . Hacking | -11 -10 -10 -9 -9 -8 --------- Run | Yrd Mat Min Mat Min Mat Machines Accessed 3 | . 1 . 2 . . Terminals 2 | . 1 . 1 . . Fabricators . | . . . . . . Repair Stations . | . . . . . . Recycling Units . | . . . . . . Scanalyzers 1 | . . . 1 . . Garrison Access . | . . . . . . Total Hacks 14 | . 8 . 6 . . Successful 10 | . 6 . 4 . . Failed 4 | . 2 . 2 . . Catastrophic 1 | . 1 . . . . Database Lockouts . | . . . . . . Manual . | . . . . . . Terminals 10 | . 8 . 2 . . Fabricators . | . . . . . . Repair Stations . | . . . . . . Recycling Units . | . . . . . . Scanalyzers 4 | . . . 4 . . Garrison Access . | . . . . . . Terminal Hacks 8 | . 6 . 2 . . Record 4 | . 2 . 2 . . Prototype ID Bank 1 | . 1 . . . . Emergency Access Points 1 | . 1 . . . . Scanalyzer Index 1 | . 1 . . . . Alert Level 1 | . 1 . . . . Fabricator Hacks . | . . . . . . Repair Station Hacks . | . . . . . . Recycling Unit Hacks . | . . . . . . Scanalyzer 2 | . . . 2 . . Insert Component 1 | . . . 1 . . Analyze 1 | . . . 1 . . Garrison Access Hacks . | . . . . . . Unauthorized Hacks . | . . . . . . Terminals . | . . . . . . Fabricators . | . . . . . . Repair Stations . | . . . . . . Recycling Units . | . . . . . . Scanalyzers . | . . . . . . Garrison Access . | . . . . . . Data Cores Recovered . | . . . . . . Used . | . . . . . . Hacking Detections 3 | . 1 . 2 . . Full Trace Events 1 | . . . 1 . . Feedback Events . | . . . . . . Feedback Blocked . | . . . . . . Robot Schematics Acquired . | . . . . . . Robots Built . | . . . . . . Authchips . | . . . . . . Time . | . . . . . . Total Robot Build Rating . | . . . . . . Part Schematics Acquired . | . . . . . . Parts Built . | . . . . . . Authchips . | . . . . . . Time . | . . . . . . Total Part Build Rating . | . . . . . . Part Studies Acquired . | . . . . . . Parts Repaired . | . . . . . . Time . | . . . . . . Parts Recycled . | . . . . . . Recycled Matter . | . . . . . . Retrieved Matter . | . . . . . . Retrieved Components . | . . . . . . Parts Scanalyzed 1 | . . . 1 . . Part Schematics Acquired . | . . . . . . Parts Damaged . | . . . . . . Bothacking | -11 -10 -10 -9 -9 -8 ------------ Run | Yrd Mat Min Mat Min Mat Used RIF Installer . | . . . . . . Robots Hacked . | . . . . . . Non-combat . | . . . . . . Combat . | . . . . . . Robot Hacks Applied . | . . . . . . Relay Couplers Released . | . . . . . . Fabnet Peak Effective % . | . . . . . . Robots Rewired . | . . . . . . Allies Hacked . | . . . . . . Hacks Repelled . | . . . . . . Allies | -11 -10 -10 -9 -9 -8 -------- Run | Yrd Mat Min Mat Min Mat Total Allies . | . . . . . . Largest Group . | . . . . . . Highest-Rated Group . | . . . . . . Highest-Rated Ally . | . . . . . . Total Orders . | . . . . . . Ally Attacks . | . . . . . . Total Damage . | . . . . . . Kills . | . . . . . . Allies Corrupted . | . . . . . . Allies Melted . | . . . . . . Intel | -11 -10 -10 -9 -9 -8 ------- Run | Yrd Mat Min Mat Min Mat Active Infowar (turns) 528 | . . 168 249 111 . Sensors 528 | . . 168 249 111 . Robot Analysis Total . | . . . . . . Derelict Logs Recovered . | . . . . . . Drone Launches . | . . . . . . Drone Recoveries . | . . . . . . Exploration | -11 -10 -10 -9 -9 -8 ------------- Run | Yrd Mat Min Mat Min Mat Turns Passed 1351 | 106 244 205 268 179 349 Spaces Moved 1027 | 78 193 168 152 146 290 Core 206 | 5 . . 8 62 131 Treads 53 | . . . . 53 . Legs 578 | 73 193 168 144 . . Wheels . | . . . . . . Hover . | . . . . . . Flight 190 | . . . . 31 159 Fastest Speed 31 | 50 120 120 100 40 31 Average Speed 108 | 115 120 120 118 91 95 Slowest Speed 440 | 120 120 120 120 160 440 Overloaded Moves . | . . . . . . Propulsion Burnouts . | . . . . . . Robots Hopped 3 | . . . . 3 . Potential Cave-ins . | . . . . . . Cave-ins Triggered . | . . . . . . Exploration Rate (%) 25 | 5 31 40 20 25 33 Regions Visited 5 Branch Regions 2 Pre-discovered Areas . | . . . . . . Known Exits Taken . | . . . . . . Unknown Exits Taken 5 | 1 1 1 1 1 . Scrap Searched . | . . . . . . Spaces Dug . | . . . . . . Terrain Destroyed 11 | . . . . . 11 Melee . | . . . . . . Projectile 11 | . . . . . 11 AOE . | . . . . . . Terrain Rammed . | . . . . . . Walls Destroyed . | . . . . . . Machines Disabled . | . . . . . . Actions | -11 -10 -10 -9 -9 -8 --------- Run | Yrd Mat Min Mat Min Mat Total 1170 | 90 197 170 195 183 335 Wait . | . . . . . . Move 1016 | 78 192 166 151 139 290 Hop 3 | . . . . 3 . Pick Up 7 | 4 . 1 2 . . Fast Attach 21 | 6 1 . . 2 12 Attach 7 | . . . 2 4 1 Detach 3 | . . . . 2 1 Swap 4 | . . 1 2 . 1 Drop 15 | . . . 4 . 11 Fire 42 | . 4 . 24 . 14 Melee . | . . . . . . Ram 31 | . . . . 26 5 Kick 14 | 2 . 2 10 . . Crush 7 | . . . . 7 . Escape Stasis . | . . . . . . Rewire . | . . . . . . Trap . | . . . . . . Miscellaneous . | . . . . . . Route ------- -11/Scrapyard -10/Materials -10/Mines -9/Materials -9/Mines (discovered 2 exits: [*Mat x2]) -8/Materials History --------- Turn | Location | Event 3 | -11/Scrapyard | Discovered new exit (range 15) 107 | -11/Scrapyard | Entered Materials 324 | -10/Materials | Build established: Mutant 327 | -10/Materials | Discovered new exit (range 11) 351 | -10/Materials | Entered Mines 372 | -10/Mines | Found a damaged Exp. Sensor Array with a note attached 387 | -10/Mines | Found Prototype Device 388 | -10/Mines | Identified Exp. Sensor Array 542 | -10/Mines | Discovered new exit (range 5) 556 | -10/Mines | Entered Materials 556 | -9/Materials | Evolved 2 slots: Propulsion x2 747 | -9/Materials | Discovered new exit (range 16) 824 | -9/Materials | Entered Mines 840 | -9/Mines | Assembled infested the area 845 | -9/Mines | Assisted by a Guerilla fighting off Assembled 848 | -9/Mines | Lost 5 parts (1p2n2w) 851 | -9/Mines | Discovered new exit (range 11) 859 | -9/Mines | Core integrity fell below 50% 944 | -9/Mines | Discovered new exit (range 11) 987 | -9/Mines | Core integrity fell below 20% 1003 | -9/Mines | Entered Materials 1003 | -8/Materials | Evolved 2 slots: Power x1, Utility x1 1323 | -8/Materials | Core integrity fell below 50% 1350 | -8/Materials | Core integrity fell below 20% 1352 | -8/Materials | Destroyed by Y-45 Defender with Heavy Assault Rifle Last Messages --------------- W-25 Informer sends out distress signal. Dropped Adv. Assault Cannon. Dropped Lrg. Battery. Dropped Microactuators. W-25 Informer sends out distress signal. O-16 Technician: "IFF HANDSHAKE FAILED. SECURING TERMINAL." W-25 Informer sends out distress signal. ALERT: Hostiles spotted, dispatching reinforcements to Terminal M007. S-10 Pest destroyed. K-01 Serf collects debris. S-10 Pest destroyed. T-07 Excavator is excavating. Slammed into T-07 Excavator. Slammed into S-10 Pest. Penetrated by Slug. Slammed into S-10 Pest. Slammed into Y-45 Defender. Slammed into H-55 Commando. Map ----- +----------------------------------------------------+ | | | | | | | | | | | | | | | | | | | | | | | ?????????????????????????????????????????????????? | | ?????????????????????????????????????????????????? | | ?????????????????????????????????????????????????? | | ?????????????????????????????????????????????????? | | #####################??#####?????????????????????? | | # [ [ #??[ #?????????????????????? | | # =%= # #?????????????????????? | | + """" + !#?????????????????????? | | # """" # =] #?????????????????????? | | # """" #? =] #?????????????????????? | | # #?? #?????????????????????? | | ###########+####+###????????????????? | | """ =% k w Y #????????????????? | | """ [ #????????????????? | | """ Y Y @hY #????????????????? | | ################# #### #????????????????? | | #??# T #?# ts #???? #????????????????? | | ### #??# #?## s ##??? #????????????????? | | ??# #### ! #??# ####??? #????????????????? | | ??# + #??##??????# ##???????????????? | | ??######### ########### #???????????????? | | ??????????# ! # ### ?????????? | | ??????????# / ?????????? | | ??????????# """ # #???????????????? | | ??????????# """ # #####+## #???????????????? | | ??????????# """ # # #?????????????????????? | | ??????????# """ + + #?????????????????????? | | ??????????# """ #### """ #?????????????????????? | | ??????????# #??# """ #?????????????????????? | | ??????????# ######??# """ #?????????????????????? | | ??????????##????????# #?????????????????????? | | ????????????????????###+##+#?????????????????????? | | ??????????????????????# #?????????????????????? | | ??????##??????????????# #?????????????????????? | | ??????T ??????????????# #?????????????????????? | | ?????? ??????###+##### #?????????????????????? | | ?????? ??? #?????????????????????? | | ?????? ??????###### ############ ??????? | | ?????? ############ "%" ?????? | +----------------------------------------------------+ Best States ------------- Heat Dissipation 31 Energy Generation 10 Energy Capacity 450 Matter Stores 300 Matter Capacity 300 Sight Range 16 Robot Scan Range 20 Terrain Scan Density 10 Melee Speed Boost 50 Evasion (%) 63 Recoil Reduction 2 Item Schematics ----------------- None Robot Schematics ------------------ None Fabricated ------------ Nothing Repaired ---------- Nothing Studied --------- None Alien Tech Used ----------------- None Achievements -------------- DATA ERROR: Steam Global Achievement% Fist Fight For Emergencies Only Challenges ------------ None Game ------ Seed MultitargetingSniperSpear Manual? 0 Play Time 00:16:21 Cumulative 1.2 hours Start 2025.10.24 @ 11:11:51 End 2025.10.24 @ 18:12:48 Sessions 2 Manual Loads 0 Difficulty Rogue Special Mode None Game No. 8 Rogue 8 Adventurer 0 Explorer 0 Win Type - Total 0 Types 0/0/0/0/0/0/0/0/0/0 Lore% 1 Gallery% 4 Achievement% 4 Wizard Run 0 Options --------- Layout 1 ASCII 0 Keyboard 0 Movement Arrows Keybinds 0 Fullscreen 1 Font 24/Smallcaps Map View 50x35 Zoom Use 0% Tactical HUD 0 Map Filters NONE Filters NONE Steam 1 RUN: 48ac5aa1-fb8c-4ece-91da-a69eccff6090